[Event "Titled Tuesday Blitz June 27 Early 2023"]
[White "Sethuraman, S.P."]
[Black "Soham Kamotra"]
[WhiteFideId "5021596"]
[BlackFideId "46647490"]
[WhiteElo "2807"]
[BlackElo "2657"]
[Result "1-0"]
[Round "7"]
[TimeControl "180+2"]
[Date "2023.06.27"]
[WhiteClock "0:02:20"]
[BlackClock "0:00:00"]
[Board "40"]

1. Nf3 {[%clk 0:03:00]}  Nf6 {[%clk 0:02:55]} 2. c4 {[%clk 0:03:00]}  b6 {[%clk 0:02:55]} 3. Nc3 {[%clk 0:03:00]}  Bb7 {[%clk 0:02:56]} 4. d4 {[%clk 0:03:00]}  e6 {[%clk 0:02:56]} 5. a3 {[%clk 0:03:00]}  d5 {[%clk 0:02:54]} 6. Qc2 {[%clk 0:03:00]}  Be7 {[%clk 0:02:54]} 7. cxd5 {[%clk 0:02:59]}  Nxd5 {[%clk 0:02:54]} 8. e4 {[%clk 0:02:57]}  Nxc3 {[%clk 0:02:55]} 9. bxc3 {[%clk 0:02:58]}  c5 {[%clk 0:02:55]} 10. Bb5+ {[%clk 0:02:53]}  Bc6 {[%clk 0:02:48]} 11. Bd3 {[%clk 0:02:53]}  O-O {[%clk 0:02:43]} 12. O-O {[%clk 0:02:45]}  h6 {[%clk 0:00:00]} 13. Rd1 {[%clk 0:02:20]} 1-0


[Site "https://www.chess.com"]

[Event "Titled Tuesday Blitz June 27 Early 2023"]
[White "Kislinsky, Alexey"]
[Black "Jakubowski, Krzysztof"]
[WhiteFideId "14108801"]
[BlackFideId "1112848"]
[WhiteElo "2763"]
[BlackElo "2622"]
[Result "1/2-1/2"]
[Round "7"]
[TimeControl "180+2"]
[Date "2023.06.27"]
[WhiteClock "0:01:12"]
[BlackClock "0:02:13"]
[Board "46"]

1. e4 {[%clk 0:02:58]}  c5 {[%clk 0:02:59]} 2. c3 {[%clk 0:02:57]}  Nf6 {[%clk 0:02:58]} 3. e5 {[%clk 0:02:57]}  Nd5 {[%clk 0:02:58]} 4. Bc4 {[%clk 0:02:57]}  e6 {[%clk 0:02:57]} 5. d4 {[%clk 0:02:55]}  cxd4 {[%clk 0:02:57]} 6. cxd4 {[%clk 0:02:56]}  d6 {[%clk 0:02:55]} 7. Qe2 {[%clk 0:02:54]}  Nb6 {[%clk 0:02:51]} 8. Bb3 {[%clk 0:02:53]}  Nc6 {[%clk 0:02:46]} 9. Nf3 {[%clk 0:02:53]}  d5 {[%clk 0:02:44]} 10. h4 {[%clk 0:02:43]}  h6 {[%clk 0:02:42]} 11. h5 {[%clk 0:02:42]}  Bd7 {[%clk 0:02:42]} 12. Nc3 {[%clk 0:02:41]}  Na5 {[%clk 0:02:38]} 13. Bc2 {[%clk 0:01:12]}  Rc8 {[%clk 0:02:13]} 1/2-1/2


[Site "https://www.chess.com"]

[Event "Titled Tuesday Blitz June 27 Early 2023"]
[White "Klukin, Kirill"]
[Black "Fonseca Manrique, Enrique"]
[WhiteFideId "24199273"]
[BlackFideId "5114330"]
[WhiteElo "2737"]
[BlackElo "2574"]
[Result "1/2-1/2"]
[Round "7"]
[TimeControl "180+2"]
[Date "2023.06.27"]
[WhiteClock "0:02:19"]
[BlackClock "0:00:55"]
[Board "50"]

1. f4 {[%clk 0:02:56]}  g6 {[%clk 0:02:59]} 2. Nf3 {[%clk 0:02:56]}  Bg7 {[%clk 0:02:59]} 3. g3 {[%clk 0:02:56]}  d6 {[%clk 0:02:51]} 4. Bg2 {[%clk 0:02:56]}  e5 {[%clk 0:02:51]} 5. d3 {[%clk 0:02:55]}  Nh6 {[%clk 0:02:49]} 6. O-O {[%clk 0:02:55]}  Nc6 {[%clk 0:02:46]} 7. Nc3 {[%clk 0:02:52]}  O-O {[%clk 0:02:46]} 8. e4 {[%clk 0:02:51]}  exf4 {[%clk 0:02:41]} 9. Bxf4 {[%clk 0:02:50]}  Ng4 {[%clk 0:02:39]} 10. Qd2 {[%clk 0:02:47]}  Be6 {[%clk 0:00:55]} 11. Rae1 {[%clk 0:02:19]} 1/2-1/2


[Site "https://www.chess.com"]

[Event "Titled Tuesday Blitz June 27 Early 2023"]
[White "Manukian, Artak"]
[Black "Hambleton, Aman"]
[WhiteFideId "13301373"]
[BlackFideId "2606577"]
[WhiteElo "2431"]
[BlackElo "2709"]
[Result "1/2-1/2"]
[Round "7"]
[TimeControl "180+2"]
[Date "2023.06.27"]
[WhiteClock "0:01:59"]
[BlackClock "0:01:19"]
[Board "57"]

1. e4 {[%clk 0:02:57]}  b6 {[%clk 0:02:53]} 2. d4 {[%clk 0:02:57]}  Bb7 {[%clk 0:02:53]} 3. Bd3 {[%clk 0:02:58]}  e6 {[%clk 0:02:53]} 4. Nf3 {[%clk 0:02:58]}  d5 {[%clk 0:02:54]} 5. e5 {[%clk 0:02:58]}  Ba6 {[%clk 0:02:53]} 6. O-O {[%clk 0:02:55]}  Bxd3 {[%clk 0:02:54]} 7. Qxd3 {[%clk 0:02:55]}  Ne7 {[%clk 0:02:54]} 8. Bg5 {[%clk 0:02:51]}  Qd7 {[%clk 0:02:54]} 9. a4 {[%clk 0:02:51]}  c5 {[%clk 0:02:49]} 10. c3 {[%clk 0:02:49]}  c4 {[%clk 0:02:48]} 11. Qc2 {[%clk 0:02:49]}  Nbc6 {[%clk 0:02:49]} 12. Nbd2 {[%clk 0:02:48]}  Na5 {[%clk 0:02:49]} 13. Rfb1 {[%clk 0:02:46]}  h6 {[%clk 0:02:48]} 14. Bh4 {[%clk 0:02:45]}  Nf5 {[%clk 0:02:48]} 15. b4 {[%clk 0:02:33]}  cxb3 {[%clk 0:01:19]} 16. Nxb3 {[%clk 0:01:59]} 1/2-1/2


[Site "https://www.chess.com"]

[Event "Titled Tuesday Blitz June 27 Early 2023"]
[White "Fernandez Guillen, Ernesto J."]
[Black "Mickiewicz, Piotr"]
[WhiteFideId "3512428"]
[BlackFideId "1114891"]
[WhiteElo "2707"]
[BlackElo "2407"]
[Result "0-1"]
[Round "7"]
[TimeControl "180+2"]
[Date "2023.06.27"]
[WhiteClock "0:00:00"]
[BlackClock "0:02:03"]
[Board "58"]

1. e4 {[%clk 0:03:00]}  c6 {[%clk 0:02:56]} 2. d4 {[%clk 0:02:54]}  d5 {[%clk 0:02:57]} 3. e5 {[%clk 0:02:49]}  Bf5 {[%clk 0:02:57]} 4. c3 {[%clk 0:02:43]}  e6 {[%clk 0:02:56]} 5. Bd3 {[%clk 0:02:42]}  Bxd3 {[%clk 0:02:53]} 6. Qxd3 {[%clk 0:02:43]}  Qa5 {[%clk 0:02:53]} 7. Ne2 {[%clk 0:02:44]}  Qa6 {[%clk 0:02:49]} 8. Qd1 {[%clk 0:02:44]}  h5 {[%clk 0:02:47]} 9. O-O {[%clk 0:02:45]}  Nh6 {[%clk 0:02:44]} 10. Nd2 {[%clk 0:02:40]}  h4 {[%clk 0:02:41]} 11. h3 {[%clk 0:02:39]}  Nf5 {[%clk 0:02:34]} 12. b4 {[%clk 0:00:00]}  Qd3 {[%clk 0:02:03]} 0-1


[Site "https://www.chess.com"]

[Event "Titled Tuesday Blitz June 27 Early 2023"]
[White "Ajay Karthikeyan"]
[Black "Coelho, Ramyres Santana"]
[WhiteFideId "35011685"]
[BlackFideId "2120690"]
[WhiteElo "2699"]
[BlackElo "2274"]
[Result "1/2-1/2"]
[Round "7"]
[TimeControl "180+2"]
[Date "2023.06.27"]
[WhiteClock "0:02:21"]
[BlackClock "0:01:19"]
[Board "59"]

1. c4 {[%clk 0:02:53]}  Nf6 {[%clk 0:02:57]} 2. g3 {[%clk 0:02:52]}  g6 {[%clk 0:02:57]} 3. Nc3 {[%clk 0:02:53]}  Bg7 {[%clk 0:02:57]} 4. Bg2 {[%clk 0:02:53]}  O-O {[%clk 0:02:58]} 5. e4 {[%clk 0:02:51]}  d6 {[%clk 0:02:59]} 6. Nge2 {[%clk 0:02:51]}  e5 {[%clk 0:02:58]} 7. O-O {[%clk 0:02:52]}  Nc6 {[%clk 0:02:58]} 8. d3 {[%clk 0:02:52]}  Be6 {[%clk 0:02:57]} 9. h3 {[%clk 0:02:52]}  Qd7 {[%clk 0:02:57]} 10. Kh2 {[%clk 0:02:53]}  Nh5 {[%clk 0:02:57]} 11. f4 {[%clk 0:02:50]}  f5 {[%clk 0:02:55]} 12. Be3 {[%clk 0:02:49]}  exf4 {[%clk 0:02:52]} 13. gxf4 {[%clk 0:02:47]}  fxe4 {[%clk 0:02:52]} 14. dxe4 {[%clk 0:02:47]}  Bxc4 {[%clk 0:01:19]} 15. Qd2 {[%clk 0:02:21]} 1/2-1/2


[Site "https://www.chess.com"]

[Event "Titled Tuesday Blitz June 27 Early 2023"]
[White "hsd2016"]
[Black "Sevian, Samuel"]
[BlackFideId "2040506"]
[WhiteElo "2229"]
[BlackElo "3045"]
[Result "0-1"]
[Round "7"]
[TimeControl "180+2"]
[Date "2023.06.27"]
[WhiteClock "0:00:00"]
[BlackClock "0:02:20"]
[Board "60"]

1. e4 {[%clk 0:03:00]}  c5 {[%clk 0:02:57]} 2. Nf3 {[%clk 0:03:00]}  e6 {[%clk 0:02:57]} 3. d4 {[%clk 0:03:01]}  cxd4 {[%clk 0:02:58]} 4. Nxd4 {[%clk 0:03:02]}  Nc6 {[%clk 0:02:58]} 5. Nc3 {[%clk 0:03:00]}  a6 {[%clk 0:02:59]} 6. a3 {[%clk 0:02:58]}  Nf6 {[%clk 0:02:50]} 7. Be3 {[%clk 0:02:57]}  Qc7 {[%clk 0:02:49]} 8. f3 {[%clk 0:02:54]}  b5 {[%clk 0:02:46]} 9. Qd2 {[%clk 0:02:48]}  Bb7 {[%clk 0:02:38]} 10. g4 {[%clk 0:02:44]}  d6 {[%clk 0:02:32]} 11. Nxc6 {[%clk 0:00:00]}  Bxc6 {[%clk 0:02:20]} 0-1


[Site "https://www.chess.com"]

[Event "Titled Tuesday Blitz June 27 Early 2023"]
[White "Pap, Gyula"]
[Black "Kaidanov, Gregory"]
[WhiteFideId "725323"]
[BlackFideId "2008564"]
[WhiteElo "2928"]
[BlackElo "2642"]
[Result "1/2-1/2"]
[Round "7"]
[TimeControl "180+2"]
[Date "2023.06.27"]
[WhiteClock "0:00:59"]
[BlackClock "0:02:10"]
[Board "61"]

1. d4 {[%clk 0:03:00]}  d5 {[%clk 0:02:59]} 2. c4 {[%clk 0:03:01]}  e6 {[%clk 0:02:59]} 3. Nc3 {[%clk 0:03:01]}  c6 {[%clk 0:02:59]} 4. cxd5 {[%clk 0:03:01]}  exd5 {[%clk 0:02:59]} 5. Bf4 {[%clk 0:03:02]}  Bf5 {[%clk 0:02:57]} 6. f3 {[%clk 0:03:01]}  Nf6 {[%clk 0:02:56]} 7. g4 {[%clk 0:02:55]}  Bg6 {[%clk 0:02:52]} 8. h4 {[%clk 0:02:56]}  h5 {[%clk 0:02:50]} 9. g5 {[%clk 0:02:55]}  Ng8 {[%clk 0:02:49]} 10. e3 {[%clk 0:02:55]}  Bd6 {[%clk 0:02:49]} 11. Nh3 {[%clk 0:02:47]}  Ne7 {[%clk 0:02:45]} 12. Bd3 {[%clk 0:02:37]}  Bxd3 {[%clk 0:02:37]} 13. Qxd3 {[%clk 0:00:59]}  Ng6 {[%clk 0:02:10]} 1/2-1/2


[Site "https://www.chess.com"]

[Event "Titled Tuesday Blitz June 27 Early 2023"]
[White "Vokhidov, Shamsiddin"]
[Black "Jaskolka, Tomasz"]
[WhiteFideId "14204223"]
[BlackFideId "1170791"]
[WhiteElo "2913"]
[BlackElo "2620"]
[Result "1/2-1/2"]
[Round "7"]
[TimeControl "180+2"]
[Date "2023.06.27"]
[WhiteClock "0:02:24"]
[BlackClock "0:01:22"]
[Board "63"]

1. e4 {[%clk 0:03:00]}  d5 {[%clk 0:02:59]} 2. exd5 {[%clk 0:03:00]}  Nf6 {[%clk 0:03:00]} 3. Nf3 {[%clk 0:03:01]}  Bg4 {[%clk 0:03:00]} 4. h3 {[%clk 0:03:01]}  Bxf3 {[%clk 0:03:00]} 5. Qxf3 {[%clk 0:03:01]}  Qxd5 {[%clk 0:03:00]} 6. Qxd5 {[%clk 0:03:02]}  Nxd5 {[%clk 0:03:01]} 7. g3 {[%clk 0:03:02]}  c6 {[%clk 0:03:01]} 8. Bg2 {[%clk 0:03:03]}  Nd7 {[%clk 0:03:01]} 9. O-O {[%clk 0:03:03]}  e6 {[%clk 0:03:01]} 10. d4 {[%clk 0:03:03]}  Be7 {[%clk 0:02:57]} 11. c3 {[%clk 0:03:03]}  O-O {[%clk 0:02:57]} 12. Nd2 {[%clk 0:03:04]}  c5 {[%clk 0:02:54]} 13. dxc5 {[%clk 0:03:01]}  Nxc5 {[%clk 0:02:54]} 14. Nb3 {[%clk 0:02:58]}  Nd3 {[%clk 0:02:52]} 15. Rd1 {[%clk 0:02:50]}  Nxc1 {[%clk 0:02:50]} 16. Raxc1 {[%clk 0:02:50]}  Nf6 {[%clk 0:02:47]} 17. Bxb7 {[%clk 0:02:46]}  Rab8 {[%clk 0:01:22]} 18. Bf3 {[%clk 0:02:24]} 1/2-1/2


[Site "https://www.chess.com"]

[Event "Titled Tuesday Blitz June 27 Early 2023"]
[White "Cherniaiev, Tykhon"]
[Black "Nozdrachev, Leonid"]
[WhiteFideId "14182360"]
[BlackFideId "24113433"]
[WhiteElo "2706"]
[BlackElo "2575"]
[Result "1/2-1/2"]
[Round "7"]
[TimeControl "180+2"]
[Date "2023.06.27"]
[WhiteClock "0:02:22"]
[BlackClock "0:00:45"]
[Board "69"]

1. Nf3 {[%clk 0:03:00]}  d5 {[%clk 0:02:55]} 2. d4 {[%clk 0:03:01]}  c6 {[%clk 0:02:53]} 3. c4 {[%clk 0:03:01]}  Bg4 {[%clk 0:02:49]} 4. e3 {[%clk 0:03:00]}  Nf6 {[%clk 0:02:45]} 5. Nbd2 {[%clk 0:02:55]}  e6 {[%clk 0:02:39]} 6. h3 {[%clk 0:02:56]}  Bxf3 {[%clk 0:02:37]} 7. Nxf3 {[%clk 0:02:55]}  Nbd7 {[%clk 0:02:34]} 8. Bd3 {[%clk 0:02:54]}  Bb4+ {[%clk 0:02:33]} 9. Bd2 {[%clk 0:02:53]}  Bxd2+ {[%clk 0:02:32]} 10. Qxd2 {[%clk 0:02:50]}  Qe7 {[%clk 0:00:45]} 11. O-O {[%clk 0:02:22]} 1/2-1/2


[Site "https://www.chess.com"]

[Event "Titled Tuesday Blitz June 27 Early 2023"]
[White "Jaracz, Pawel"]
[Black "Delorme, Axel"]
[WhiteFideId "1102222"]
[BlackFideId "632023"]
[WhiteElo "2691"]
[BlackElo "2541"]
[Result "1/2-1/2"]
[Round "7"]
[TimeControl "180+2"]
[Date "2023.06.27"]
[WhiteClock "0:01:49"]
[BlackClock "0:01:21"]
[Board "73"]

1. e4 {[%clk 0:02:54]}  c5 {[%clk 0:02:58]} 2. Nf3 {[%clk 0:02:54]}  d6 {[%clk 0:02:58]} 3. d4 {[%clk 0:02:53]}  cxd4 {[%clk 0:02:59]} 4. Nxd4 {[%clk 0:02:53]}  Nf6 {[%clk 0:03:00]} 5. Nc3 {[%clk 0:02:54]}  Bd7 {[%clk 0:03:01]} 6. Bc4 {[%clk 0:02:53]}  Nc6 {[%clk 0:02:58]} 7. O-O {[%clk 0:02:49]}  e6 {[%clk 0:02:57]} 8. Bg5 {[%clk 0:02:47]}  Be7 {[%clk 0:02:55]} 9. Ndb5 {[%clk 0:02:40]}  Qb8 {[%clk 0:02:52]} 10. Qd2 {[%clk 0:02:30]}  a6 {[%clk 0:02:49]} 11. Bxf6 {[%clk 0:02:26]}  gxf6 {[%clk 0:01:21]} 12. Nd4 {[%clk 0:01:49]} 1/2-1/2


[Site "https://www.chess.com"]

[Event "Titled Tuesday Blitz June 27 Early 2023"]
[White "djokovic74"]
[Black "Berezin, Viktor"]
[BlackFideId "14107872"]
[WhiteElo "2679"]
[BlackElo "2534"]
[Result "1/2-1/2"]
[Round "7"]
[TimeControl "180+2"]
[Date "2023.06.27"]
[WhiteClock "0:02:03"]
[BlackClock "0:01:12"]
[Board "75"]

1. e4 {[%clk 0:03:00]}  g6 {[%clk 0:02:56]} 2. d4 {[%clk 0:03:00]}  Bg7 {[%clk 0:02:57]} 3. Nf3 {[%clk 0:03:01]}  d6 {[%clk 0:02:56]} 4. Nc3 {[%clk 0:03:02]}  Nf6 {[%clk 0:02:57]} 5. Be2 {[%clk 0:03:02]}  O-O {[%clk 0:02:57]} 6. O-O {[%clk 0:03:03]}  c6 {[%clk 0:02:58]} 7. h3 {[%clk 0:03:00]}  Nbd7 {[%clk 0:02:58]} 8. Re1 {[%clk 0:03:00]}  e5 {[%clk 0:02:57]} 9. Be3 {[%clk 0:03:00]}  Qc7 {[%clk 0:02:57]} 10. a4 {[%clk 0:03:01]}  Re8 {[%clk 0:02:56]} 11. dxe5 {[%clk 0:02:59]}  Nxe5 {[%clk 0:02:50]} 12. Nd4 {[%clk 0:02:51]}  d5 {[%clk 0:02:45]} 13. exd5 {[%clk 0:02:46]}  Nxd5 {[%clk 0:02:44]} 14. Nxd5 {[%clk 0:02:45]}  cxd5 {[%clk 0:01:12]} 15. Bf4 {[%clk 0:02:03]} 1/2-1/2


[Site "https://www.chess.com"]

[Event "Titled Tuesday Blitz June 27 Early 2023"]
[White "Jovic, Stanoje"]
[Black "Khoroshev, Nikita"]
[WhiteFideId "905020"]
[BlackFideId "14200287"]
[WhiteElo "2490"]
[BlackElo "2672"]
[Result "1/2-1/2"]
[Round "7"]
[TimeControl "180+2"]
[Date "2023.06.27"]
[WhiteClock "0:02:15"]
[BlackClock "0:00:55"]
[Board "76"]

1. c4 {[%clk 0:03:00]}  Nf6 {[%clk 0:02:57]} 2. g3 {[%clk 0:03:01]}  g6 {[%clk 0:02:56]} 3. Bg2 {[%clk 0:03:01]}  Bg7 {[%clk 0:02:56]} 4. Nc3 {[%clk 0:03:01]}  c6 {[%clk 0:02:55]} 5. Nf3 {[%clk 0:03:01]}  d6 {[%clk 0:02:54]} 6. O-O {[%clk 0:03:01]}  O-O {[%clk 0:02:55]} 7. d3 {[%clk 0:03:00]}  e5 {[%clk 0:02:50]} 8. e4 {[%clk 0:02:58]}  a5 {[%clk 0:02:49]} 9. h3 {[%clk 0:02:57]}  Na6 {[%clk 0:02:44]} 10. Be3 {[%clk 0:02:55]}  h6 {[%clk 0:02:41]} 11. Qd2 {[%clk 0:02:53]}  Kh7 {[%clk 0:02:41]} 12. a3 {[%clk 0:02:53]}  Be6 {[%clk 0:00:55]} 13. Rfb1 {[%clk 0:02:15]} 1/2-1/2


[Site "https://www.chess.com"]

[Event "Titled Tuesday Blitz June 27 Early 2023"]
[White "Weishaeutel, Moritz"]
[Black "Morgunov, Anatoly"]
[WhiteFideId "12967300"]
[BlackFideId "4145909"]
[WhiteElo "2650"]
[BlackElo "2469"]
[Result "0-1"]
[Round "7"]
[TimeControl "180+2"]
[Date "2023.06.27"]
[WhiteClock "0:00:00"]
[BlackClock "0:02:22"]
[Board "78"]

1. e4 {[%clk 0:03:00]}  e6 {[%clk 0:03:00]} 2. d4 {[%clk 0:03:01]}  d5 {[%clk 0:03:00]} 3. exd5 {[%clk 0:03:01]}  exd5 {[%clk 0:03:00]} 4. Nf3 {[%clk 0:03:02]}  Nc6 {[%clk 0:03:01]} 5. Nc3 {[%clk 0:03:02]}  Bb4 {[%clk 0:02:59]} 6. Bd3 {[%clk 0:03:02]}  Nge7 {[%clk 0:02:59]} 7. O-O {[%clk 0:02:59]}  O-O {[%clk 0:02:56]} 8. Ne2 {[%clk 0:02:57]}  Bf5 {[%clk 0:02:53]} 9. c3 {[%clk 0:02:56]}  Bd6 {[%clk 0:02:50]} 10. Bf4 {[%clk 0:02:42]}  Bxf4 {[%clk 0:02:46]} 11. Nxf4 {[%clk 0:02:41]}  Qd6 {[%clk 0:02:45]} 12. g3 {[%clk 0:00:00]}  Bxd3 {[%clk 0:02:22]} 0-1


[Site "https://www.chess.com"]

[Event "Titled Tuesday Blitz June 27 Early 2023"]
[White "Zheenbekov, Nurgazy"]
[Black "Zochowski, Kacper"]
[WhiteFideId "13800485"]
[BlackFideId "1125494"]
[WhiteElo "2455"]
[BlackElo "2650"]
[Result "1/2-1/2"]
[Round "7"]
[TimeControl "180+2"]
[Date "2023.06.27"]
[WhiteClock "0:01:00"]
[BlackClock "0:02:15"]
[Board "79"]

1. e4 {[%clk 0:03:00]}  d6 {[%clk 0:02:56]} 2. d4 {[%clk 0:02:58]}  Nf6 {[%clk 0:02:54]} 3. Bd3 {[%clk 0:02:57]}  e5 {[%clk 0:02:54]} 4. c3 {[%clk 0:02:56]}  d5 {[%clk 0:02:55]} 5. dxe5 {[%clk 0:02:52]}  Nxe4 {[%clk 0:02:55]} 6. Nd2 {[%clk 0:02:50]}  Nc5 {[%clk 0:02:41]} 7. Bc2 {[%clk 0:02:49]}  Nc6 {[%clk 0:02:42]} 8. Ngf3 {[%clk 0:02:45]}  Bg4 {[%clk 0:02:42]} 9. h3 {[%clk 0:02:45]}  Bh5 {[%clk 0:02:42]} 10. Qe2 {[%clk 0:02:43]}  d4 {[%clk 0:02:39]} 11. Qb5 {[%clk 0:01:00]}  a6 {[%clk 0:02:15]} 1/2-1/2


[Site "https://www.chess.com"]

[Event "Titled Tuesday Blitz June 27 Early 2023"]
[White "Acikel, Mert"]
[Black "Florescu, Codrut-Constantin"]
[WhiteFideId "12956465"]
[BlackFideId "1202200"]
[WhiteElo "2309"]
[BlackElo "2643"]
[Result "0-1"]
[Round "7"]
[TimeControl "180+2"]
[Date "2023.06.27"]
[WhiteClock "0:00:00"]
[BlackClock "0:02:29"]
[Board "80"]

1. e4 {[%clk 0:02:59]}  b6 {[%clk 0:03:00]} 2. d4 {[%clk 0:02:58]}  Bb7 {[%clk 0:03:00]} 3. Bd3 {[%clk 0:02:58]}  e6 {[%clk 0:03:00]} 4. Nf3 {[%clk 0:02:58]}  c5 {[%clk 0:02:59]} 5. c3 {[%clk 0:02:58]}  cxd4 {[%clk 0:02:59]} 6. cxd4 {[%clk 0:02:59]}  Nf6 {[%clk 0:02:59]} 7. Qe2 {[%clk 0:02:58]}  Qc8 {[%clk 0:02:59]} 8. Bd2 {[%clk 0:02:53]}  Ba6 {[%clk 0:02:59]} 9. Nc3 {[%clk 0:02:50]}  Bxd3 {[%clk 0:02:59]} 10. Qxd3 {[%clk 0:02:51]}  Qa6 {[%clk 0:02:59]} 11. Qxa6 {[%clk 0:02:50]}  Nxa6 {[%clk 0:02:59]} 12. a3 {[%clk 0:02:48]}  Be7 {[%clk 0:02:47]} 13. O-O {[%clk 0:02:47]}  O-O {[%clk 0:02:43]} 14. Rac1 {[%clk 0:02:44]}  Rfc8 {[%clk 0:02:35]} 15. e5 {[%clk 0:00:00]}  Nd5 {[%clk 0:02:29]} 0-1


[Site "https://www.chess.com"]

[Event "Titled Tuesday Blitz June 27 Early 2023"]
[White "Koepke, Christian"]
[Black "Gunina, Valentina"]
[WhiteFideId "4655737"]
[BlackFideId "4167570"]
[WhiteElo "2429"]
[BlackElo "2758"]
[Result "1-0"]
[Round "7"]
[TimeControl "180+2"]
[Date "2023.06.27"]
[WhiteClock "0:01:48"]
[BlackClock "0:00:00"]
[Board "81"]

1. d4 {[%clk 0:02:59]}  d5 {[%clk 0:02:59]} 2. Nf3 {[%clk 0:02:59]}  Nf6 {[%clk 0:02:58]} 3. c3 {[%clk 0:03:00]}  c6 {[%clk 0:02:51]} 4. Qc2 {[%clk 0:02:59]}  g6 {[%clk 0:02:49]} 5. h3 {[%clk 0:02:57]}  Bf5 {[%clk 0:02:49]} 6. Qb3 {[%clk 0:02:56]}  Qb6 {[%clk 0:02:49]} 7. Bf4 {[%clk 0:02:54]}  Bg7 {[%clk 0:02:44]} 8. Nbd2 {[%clk 0:02:53]}  O-O {[%clk 0:02:43]} 9. e3 {[%clk 0:02:53]}  Ne4 {[%clk 0:02:35]} 10. Be2 {[%clk 0:02:33]}  Nd7 {[%clk 0:00:00]} 11. Nxe4 {[%clk 0:01:48]} 1-0


[Site "https://www.chess.com"]

[Event "Titled Tuesday Blitz June 27 Early 2023"]
[White "Fromm, Marius"]
[Black "Golubev, Mikhail"]
[WhiteFideId "12993190"]
[BlackFideId "14100983"]
[WhiteElo "2692"]
[BlackElo "2536"]
[Result "1/2-1/2"]
[Round "7"]
[TimeControl "180+2"]
[Date "2023.06.27"]
[WhiteClock "0:01:22"]
[BlackClock "0:02:12"]
[Board "85"]

1. e4 {[%clk 0:03:00]}  c5 {[%clk 0:02:59]} 2. Nf3 {[%clk 0:03:01]}  d6 {[%clk 0:02:59]} 3. d4 {[%clk 0:03:00]}  cxd4 {[%clk 0:02:59]} 4. Nxd4 {[%clk 0:03:01]}  Nf6 {[%clk 0:02:59]} 5. Nc3 {[%clk 0:03:01]}  g6 {[%clk 0:02:59]} 6. f3 {[%clk 0:03:01]}  Bg7 {[%clk 0:02:59]} 7. Be3 {[%clk 0:03:01]}  Nc6 {[%clk 0:03:00]} 8. Qd2 {[%clk 0:03:02]}  O-O {[%clk 0:03:00]} 9. O-O-O {[%clk 0:03:03]}  d5 {[%clk 0:03:00]} 10. exd5 {[%clk 0:03:03]}  Nxd5 {[%clk 0:02:59]} 11. Nxc6 {[%clk 0:03:00]}  bxc6 {[%clk 0:02:59]} 12. Bd4 {[%clk 0:03:00]}  e5 {[%clk 0:02:56]} 13. Bc5 {[%clk 0:03:01]}  Re8 {[%clk 0:02:56]} 14. Ne4 {[%clk 0:02:57]}  Qc7 {[%clk 0:02:56]} 15. h4 {[%clk 0:02:49]}  f5 {[%clk 0:02:54]} 16. Nd6 {[%clk 0:02:44]}  Rd8 {[%clk 0:02:54]} 17. Nxc8 {[%clk 0:02:39]}  Raxc8 {[%clk 0:02:52]} 18. Bc4 {[%clk 0:01:22]}  h5 {[%clk 0:02:12]} 1/2-1/2


[Site "https://www.chess.com"]

[Event "Titled Tuesday Blitz June 27 Early 2023"]
[White "Turzo, Attila"]
[Black "Petrosian, Karlen"]
[WhiteFideId "704954"]
[BlackFideId "4176146"]
[WhiteElo "2531"]
[BlackElo "2690"]
[Result "1-0"]
[Round "7"]
[TimeControl "180+2"]
[Date "2023.06.27"]
[WhiteClock "0:01:49"]
[BlackClock "0:00:00"]
[Board "86"]

1. d4 {[%clk 0:03:00]}  Nf6 {[%clk 0:02:58]} 2. c4 {[%clk 0:03:01]}  d6 {[%clk 0:02:59]} 3. Nf3 {[%clk 0:02:59]}  g6 {[%clk 0:02:58]} 4. g3 {[%clk 0:03:00]}  Bg7 {[%clk 0:02:57]} 5. Bg2 {[%clk 0:03:00]}  Bf5 {[%clk 0:02:58]} 6. O-O {[%clk 0:03:00]}  O-O {[%clk 0:02:59]} 7. Nc3 {[%clk 0:03:00]}  Ne4 {[%clk 0:02:59]} 8. Nxe4 {[%clk 0:02:55]}  Bxe4 {[%clk 0:03:00]} 9. Ne1 {[%clk 0:02:44]}  Bxg2 {[%clk 0:03:01]} 10. Nxg2 {[%clk 0:02:45]}  c5 {[%clk 0:03:01]} 11. dxc5 {[%clk 0:02:37]}  dxc5 {[%clk 0:03:02]} 12. Qc2 {[%clk 0:02:33]}  Nc6 {[%clk 0:03:00]} 13. Be3 {[%clk 0:02:30]}  Qb6 {[%clk 0:02:58]} 14. Rab1 {[%clk 0:02:26]}  Rfd8 {[%clk 0:02:53]} 15. a3 {[%clk 0:02:15]}  a5 {[%clk 0:00:00]} 16. Nf4 {[%clk 0:01:49]} 1-0


[Site "https://www.chess.com"]

[Event "Titled Tuesday Blitz June 27 Early 2023"]
[White "Veiga, Jose Francisco R P Neves"]
[Black "Bruedigam, Martin"]
[WhiteFideId "1930087"]
[BlackFideId "24608033"]
[WhiteElo "2673"]
[BlackElo "2528"]
[Result "1/2-1/2"]
[Round "7"]
[TimeControl "180+2"]
[Date "2023.06.27"]
[WhiteClock "0:02:07"]
[BlackClock "0:01:08"]
[Board "88"]

1. c4 {[%clk 0:02:58]}  Nf6 {[%clk 0:02:56]} 2. Nc3 {[%clk 0:02:58]}  c5 {[%clk 0:02:54]} 3. g3 {[%clk 0:02:57]}  Nc6 {[%clk 0:02:52]} 4. Bg2 {[%clk 0:02:57]}  g6 {[%clk 0:02:50]} 5. e4 {[%clk 0:02:58]}  Bg7 {[%clk 0:02:50]} 6. Nge2 {[%clk 0:02:59]}  O-O {[%clk 0:02:50]} 7. O-O {[%clk 0:03:00]}  Ne8 {[%clk 0:02:47]} 8. a3 {[%clk 0:02:59]}  Nc7 {[%clk 0:02:48]} 9. Rb1 {[%clk 0:02:59]}  a5 {[%clk 0:02:45]} 10. d3 {[%clk 0:02:57]}  Ne6 {[%clk 0:02:45]} 11. Be3 {[%clk 0:02:55]}  b6 {[%clk 0:02:44]} 12. b4 {[%clk 0:02:53]}  axb4 {[%clk 0:02:41]} 13. axb4 {[%clk 0:02:54]}  Nxb4 {[%clk 0:02:32]} 14. Nd5 {[%clk 0:02:52]}  Nxd5 {[%clk 0:01:08]} 15. exd5 {[%clk 0:02:07]} 1/2-1/2


[Site "https://www.chess.com"]